[Event "ESCC-65 2022"]
[Site "Lublin"]
[Date "2022.07.06"]
[Round "2.5"]
[White "Wagner-Michel, Annett"]
[Black "Petran, Peter"]
[Result "0-1"]
[ECO "B06"]
[WhiteElo "2056"]
[BlackElo "2234"]
[Annotator "TA"]
[PlyCount "120"]
[EventDate "2022.07.05"]
[EventType "swiss"]
[EventCountry "POL"]
[SourceTitle "playchess.com"]
[Source "ChessBase"]
[SourceQuality "1"]
[TimeControl "40/5400+30:1800+30"]

{[%evp 9,120,43,48,36,35,41,32,29,21,27,41,34,22,28,46,37,47,49,61,48,57,42,39,25,35,52,54,42,100,108,107,103,86,91,150,134,146,132,136,126,405,402,396,338,316,91,81,94,498,177,166,153,160,135,284,118,105,124,129,39,47,-89,-85,-137,0,0,4,8,9,-7,-4,-71,-70,-79,-74,-89,-89,-182,-150,-221,-192,-170,-108,-224,-220,-534,-506,-498,-481,-847,-852,-556,-658,-743,-720,-4920,-3480,-3037,-3079,-2588,-2283,-2246,-2037,-12788,-12191,-29972,-5947,-29966,-12801,-7096,-6406,-5698,-5698]} 1. e4 {[%emt 0:00:05]} g6 {[%emt 0:00:52]} 2. d4 {[%emt 0:00:07]} Bg7 {[%emt 0:00:04]} 3. Nf3 {[%emt 0:00:25]} c6 {[%emt 0:00:42]} 4. Bd3 {[%emt 0:02:38]} d6 {[%emt 0:01:30]} 5. O-O {[%emt 0:00:43]} Nd7 {[%emt 0:00:37]} 6. h3 {[%emt 0:01:39] B06: Modern Defence.} e5 {[%emt 0:00:47]} 7. c3 {[%emt 0:02:53]} (7. Bg5 {looks sharper.} Ngf6 8. c3 h6 9. Bh4) 7... Ngf6 {[%emt 0:00:15]} 8. Nbd2 {[%emt 0:03:06] White is slightly better.} Qc7 {[%emt 0:01:45]} 9. Re1 {[%emt 0:08:11]} O-O {[%emt 0:00:22]} 10. Nf1 {[%emt 0:00:47]} a6 {[%emt 0:03:02]} 11. a4 {[%emt 0:04:50]} b6 {[%emt 0:00:08] [#]} 12. Bg5 $146 {[%emt 0:00:56]} ({Predecessor:} 12. Ng3 Bb7 13. Bg5 h6 14. Be3 Kh7 15. Rc1 c5 16. Qe2 c4 17. Bc2 b5 18. Nd2 {0-1 (55) Neubauer,A (1913)-Smith,P (2049) Bled 2018}) 12... h6 {[%emt 0:01:16]} 13. Be3 {[%emt 0:01:16]} Rb8 {[%emt 0:06:54]} 14. Qd2 {[%emt 0:06:07]} Kh7 {[%emt 0:00:09]} 15. g4 {[%emt 0:00:58]} c5 {[%emt 0:01:48]} 16. Ng3 {[%emt 0:04:14]} c4 {[%emt 0:02:45]} 17. Bc2 {[%emt 0:02:45]} Bb7 {[%emt 0:00:41]} 18. Rad1 {[%emt 0:12:25]} Rfd8 {[%emt 0:06:22]} (18... Rh8 $14) 19. g5 $16 {[%emt 0:04:25]} hxg5 {[%emt 0:00:18]} 20. Nxg5+ {[%emt 0:01:34]} (20. Bxg5 $6 Rh8 $11) 20... Kg8 {[%emt 0:00:07]} 21. f4 {[%emt 0:01:10][%cal Bf2f4,Bf4f5][%mdl 32]} Nh7 {[%emt 0:21:38]} (21... exf4 $142 22. Bxf4 Nf8) 22. Nxh7 {[%emt 0:06:35]} Kxh7 {[%emt 0:00:08]} 23. Rf1 {[%emt 0:02:07]} exd4 {[%emt 0:04:20]} 24. cxd4 {[%emt 0:01:59]} f6 $2 {[%emt 0:16:51][%mdl 8192]} (24... Rh8 $16 {was necessary.}) 25. f5 $18 {[%emt 0:05:54]} g5 {[%emt 0:01:55]} 26. Qe2 {[%emt 0:02:03]} Rh8 {[%emt 0:02:17] [#]} 27. Qg4 $2 {[%emt 0:10:21]} (27. Bxg5 $1 $18 {[%mdl 512]} Kg8 28. Bf4) 27... Kg8 $16 {[%emt 0:01:08]} 28. Nh5 {[%emt 0:03:28]} Nf8 $2 {[%emt 0:06:31][%mdl 8192] [#]} (28... Kf7 $16 {is a better chance.}) 29. Rf3 $2 {[%emt 0:03:24]} (29. Bxg5 $1 {[%mdl 512]} fxg5 (29... Rxh5 30. Qxh5) 30. f6) 29... Qf7 {[%emt 0:01:09]} 30. Nxg7 {[%emt 0:00:13]} Qxg7 {[%emt 0:00:15]} 31. Rg3 {[%emt 0:00:59][%cal Oe4e5]} Re8 {[%emt 0:03:01] Against e5} (31... Nd7 $16 {keeps fighting.}) 32. Qf3 {[%emt 0:02:58]} (32. e5 $18 {is the precise move to win. exf6 is the strong threat.} Nh7 33. Qh5) 32... Rh4 {[%emt 0:05:38][%cal Rb7e4]} 33. Rg4 {[%emt 0:00:32] Threatens to win with Rxh4.} Qh6 {[%emt 0:04:39]} 34. Rxh4 {[%emt 0:00:35]} (34. Kg2 $16) 34... Qxh4 $14 {[%emt 0:00:05]} 35. Bf2 {[%emt 0:00:29]} (35. d5 $14 {stays ahead.}) 35... Bxe4 $17 {[%emt 0:01:27]} 36. Qe2 {[%emt 0:00:40] [#]} ({White should play} 36. Bxh4 Bxf3 37. Re1) 36... Qf4 {[%emt 0:00:25] Black is more active.} (36... Bd5 $1 $17 {[%cal Oh4h3]} 37. Qg4 (37. Qxe8 $2 {is the wrong capture.} Qxh3 38. Be4 Qg4+ 39. Kf1 Qxd1+ 40. Be1 Qxd4 $19) 37... Qxg4+ 38. hxg4 Bf3) 37. Bxe4 $11 {[%emt 0:01:39]} Qxe4 {[%emt 0:01:41]} 38. Qxc4+ {[%emt 0:00:28]} d5 $132 {[%emt 0:00:05][%mdl 2048] Black is not holding back} 39. Qc6 {[%emt 0:00:56]} Qf3 $1 {[%emt 0:00:18]} 40. Qxe8 {[%emt 0:00:00]} (40. Rf1 $1 $11 Kf7 41. Qxb6) 40... Qxd1+ {[%emt 0:00:00][%mdl 4096] Endgame KQB-KQN} 41. Kg2 {[%emt 0:02:11]} Qc2 {[%emt 0:01:21][%csl LRb2,LRf5]} 42. Qa8 {[%emt 0:15:43]} ({But not} 42. a5 $2 bxa5 43. b3 Qxf5 $19) 42... Qxf5 {[%emt 0:00:26]} 43. Qxa6 {[%emt 0:00:36]} (43. b4 $17) 43... Ng6 {[%emt 0:00:28] aiming for ...Nf4+.} 44. Qf1 {[%emt 0:04:30]} ({Don't blunder} 44. Qa8+ $2 Kg7 45. Bg3 Qe4+ 46. Kh2 Qc2+ 47. Kh1 Qb1+ 48. Kg2 Qxb2+ 49. Kf1 Qxd4 $19) (44. Bg3 $17 {might work better.}) 44... Nf4+ {[%emt 0:03:26]} 45. Kg3 {[%emt 0:00:56]} Qe4 {[%emt 0:10:03] Prevents Be3.} (45... Kg7 $1 $19 46. Be3 Nh5+ 47. Kg2 Qc2+ 48. Qf2 Qxa4) 46. Bg1 {[%emt 0:01:33]} (46. b4 $17) 46... Kf7 {[%emt 0:01:42]} 47. Kh2 $2 {[%emt 0:02:35]} (47. b4 {was the crucial defense.}) 47... Qc2+ $19 {[%emt 0:01:51]} 48. Kh1 {[%emt 0:02:28]} Qxb2 {[%emt 0:03:37]} 49. Be3 {[%emt 0:00:45]} (49. h4 $142 Qc3 50. Qf2) 49... Qe2 {[%emt 0:01:23]} 50. Qxe2 {[%emt 0:03:00]} Nxe2 {[%emt 0:00:07] KB-KN} 51. Kg2 {[%emt 0:01:35]} Nc3 {[%emt 0:00:23]} 52. a5 {[%emt 0:00:21]} bxa5 {[%emt 0:00:08]} 53. Bd2 {[%emt 0:00:03]} Nb5 {[%emt 0:00:17]} 54. Bxa5 {[%emt 0:00:10]} Nxd4 {[%emt 0:00:09] Hoping for ...Ke6.} 55. Kf2 {[%emt 0:00:30]} Ke6 {[%emt 0:00:23] And now ...Kf5 would win.} 56. Kg3 {[%emt 0:01:16]} Kf5 {[%emt 0:01:14]} 57. Bd2 {[%emt 0:00:43]} Nb3 {[%emt 0:00:37]} (57... Ke4 $142 58. Kf2 Ne6 59. Bb4 Nf4 60. Ba5 Nxh3+ 61. Kg3 {[#]} d4 $1 62. Bb4 Ke3 $1 63. Bc5 Nf2 64. Kh2 f5 65. Ba7 Ne4 66. Kh3 g4+ 67. Kh4 g3 68. Kh3 f4 69. Kg4 g2 70. Bb6 g1=Q+ 71. Kf5 Qg5+ 72. Ke6 Qf6+ 73. Kd7 Qxb6 74. Ke7 Qc7+ 75. Ke6 f3 76. Kd5 f2 77. Ke6 f1=Q 78. Kd5 Qff7#) 58. Be1 {[%emt 0:00:35]} d4 {[%emt 0:00:44] ( -> ...d3)} 59. Kf3 {[%emt 0:00:09]} Nc5 {[%emt 0:01:58]} 60. Bf2 {[%emt 0:00:40]} Ne6 {[%emt 0:00:16] Quite a comeback for Black.  Weighted Error Value: White=1.08/Black=0.41} 0-1

[Event "ESCC-65 2022"]
[Site "Lublin"]
[Date "2022.07.06"]
[Round "2.6"]
[White "Malesevic, Nedeljko"]
[Black "Praszak, Michal"]
[Result "0-1"]
[ECO "A45"]
[WhiteElo "2228"]
[BlackElo "2048"]
[Annotator "TA"]
[PlyCount "30"]
[EventDate "2022.07.05"]
[EventType "swiss"]
[EventCountry "POL"]
[SourceTitle "playchess.com"]
[Source "ChessBase"]
[SourceQuality "1"]
[TimeControl "40/5400+30:1800+30"]

{[%evp 9,29,-112,-117,-122,-108,-105,-18,-56,-64,-44,0,0,0,-8,-26,-159,-162,-285,0,-89,-55,-29999]} 1. d4 {[%emt 0:00:05]} Nf6 {[%emt 0:00:16]} 2. Bg5 {[%emt 0:00:37]} d5 {[%emt 0:00:30]} 3. c4 {[%emt 0:02:33]} Ne4 {[%emt 0:01:33]} 4. Bf4 {[%emt 0:00:53]} e5 {[%emt 0:02:17]} 5. dxe5 {[%emt 0:06:42]} Bc5 {[%emt 0:00:33][%csl Ge4][%cal Rc5f2]} (5... dxc4 6. Qxd8+ Kxd8 7. Nc3 Nxc3 8. bxc3 $11) 6. e3 {[%emt 0:02:24] D06: Queen's Gambit: Symmetrical and Baltic Defences.} Bb4+ {[%emt 0:02:07]} (6... Qh4 $6 7. g3 Bb4+ 8. Nc3 $11) 7. Ke2 {[%emt 0:00:25] [#]} g5 $146 {[%emt 0:12:13] 0x0.001f237d9ccbdp-1022s more active pieces.} ({But not} 7... dxc4 $6 8. Qxd8+ Kxd8 9. a3 $11 (9. Kf3 b5 $11)) ({Black should try} 7... Qh4 $17 8. g3 Qh5+ 9. Nf3 dxc4) ({Predecessor:} 7... Qh4 8. g3 Qh5+ 9. f3 g5 10. Qxd5 gxf4 11. Qxe4 fxg3 12. Qf4 Qg6 {0-1 (12) Stosic,S (2174)-Podinic,B (2274) Belgrade 2012}) 8. a3 {[%emt 0:19:45] The position is equal.} gxf4 {[%emt 0:02:31] Dancing on a razor blade.} 9. axb4 {[%emt 0:16:30]} fxe3 {[%emt 0:01:44]} 10. Kxe3 {[%emt 0:02:17]} Qh4 {[%emt 0:06:28]} 11. g3 {[%emt 0:08:20]} Qh6+ {[%emt 0:07:23]} 12. Ke2 {[%emt 0:03:00] [#]} (12. f4 $1 $11 {was the only way to keep the balance.} d4+ 13. Qxd4 Nxg3 14. hxg3 Qxh1 15. Kf2 Qh2+ 16. Bg2) 12... Qb6 $1 $40 {[%emt 0:10:03][%mdl 128] Black goes for the king.} ({Inferior is} 12... dxc4 13. Bg2 Bg4+ 14. Bf3 $15) 13. Qe1 {[%emt 0:16:20]} (13. c5 $142 Qxb4 14. Qa4+ Qxa4 15. Rxa4) 13... dxc4 $2 {[%emt 0:04:39]} ({Worse is} 13... Qd4 14. Kf3 Qxb2 15. Ra5 $17) (13... Nc6 $19 14. f3 {[#]} Nxb4 $1) 14. Bh3 {[%emt 0:03:42]} (14. Kf3 $11 Bf5 15. Kg2) 14... Qd4 {[%emt 0:12:33][%csl Gc4][%cal Rd4d3]} 15. Bxc8 $4 {[%emt 0:02:25][%mdl 8192]} (15. Kf1 $15 Bxh3+ 16. Nxh3) 15... Qd3# {Weighted Error Value: White=0.80/Black=0.46} 0-1

[Event "ESCC-65 2022"]
[Site "Lublin"]
[Date "2022.07.06"]
[Round "2.7"]
[White "Rak, Tomasz"]
[Black "Schulz, Michael"]
[Result "1/2-1/2"]
[ECO "A31"]
[WhiteElo "1887"]
[BlackElo "2217"]
[Annotator "TA"]
[PlyCount "126"]
[EventDate "2022.07.05"]
[EventType "swiss"]
[EventCountry "POL"]
[SourceTitle "playchess.com"]
[Source "ChessBase"]
[SourceQuality "1"]
[TimeControl "40/5400+30:1800+30"]

{[%evp 11,126,-12,-5,-39,-31,-47,-40,-69,-63,-77,-66,-67,-60,-72,-77,-82,-69,-69,-27,-72,-73,-60,-50,-36,0,0,73,-125,0,0,0,0,18,23,21,0,0,0,0,0,0,0,0,0,64,0,0,0,0,0,0,0,0,-14,0,0,0,0,0,0,0,0,0,-185,-182,-173,-175,-180,-178,-173,-149,-147,-155,-657,-608,-984,-950,-844,-809,-652,-512,-777,0,0,0,0,0,0,0,0,0,-373,-349,-835,-756,-833,-661,-559,-202,-318,0,0,1471,1212,6427,6427,6419,6419,6419,0,6372,6107,1393,0,873,0,439]} 1. Nf3 {[%emt 0:00:01]} c5 {[%emt 0:00:32]} 2. c4 {[%emt 0:00:02]} Nf6 {[%emt 0:00:11][%cal Bg8f6,Bf6e4,Be4d2][%mdl 32]} 3. d4 {[%emt 0:00:34]} cxd4 {[%emt 0:00:07]} 4. Nxd4 {[%emt 0:00:06]} e5 {[%emt 0:00:21]} 5. Nc2 {[%emt 0:00:12]} d5 {[%emt 0:00:31]} 6. cxd5 {[%emt 0:00:46]} Qxd5 {[%emt 0:00:22]} 7. Bd2 {[%emt 0:05:09] A31: Symmetrical English: 2 Nf3 Nf6 3 d4.} Ne4 {[%emt 0:04:56] [#]} 8. f3 $146 {[%emt 0:05:45]} ({Predecessor:} 8. Ne3 Qd4 9. Nc3 Bb4 10. Nxe4 Qxe4 11. Nd5 Qxd5 12. Bxb4 Qxd1+ 13. Rxd1 Nc6 14. Bc3 Be6 {½-½ (71) Maze,S (2594)-Shoker,S (2517) Belfort 2012}) 8... Nxd2 {[%emt 0:00:22]} 9. Nxd2 {[%emt 0:00:40] Black is slightly better.} Nc6 {[%emt 0:01:00]} 10. e4 {[%emt 0:01:08]} Qa5 {[%emt 0:02:39]} 11. Bc4 {[%emt 0:02:29]} Be6 {[%emt 0:04:50]} 12. Bxe6 {[%emt 0:05:05]} fxe6 {[%emt 0:02:30]} 13. a3 {[%emt 0:00:37]} Rd8 {[%emt 0:11:07]} 14. b4 {[%emt 0:01:02]} Qb6 {[%emt 0:03:01]} (14... Qa4 $5 {[%cal Rf8e7]} 15. Ne3 Qa6 $15) 15. Qb1 {[%emt 0:10:24]} Nd4 {[%emt 0:07:33]} 16. Nc4 {[%emt 0:02:48][%csl LRb6,LRe5]} Qc7 {[%emt 0:04:13]} 17. Qa2 {[%emt 0:06:20]} b5 {[%emt 0:08:33]} 18. Nxd4 {[%emt 0:01:46]} Rxd4 {[%emt 0:01:56]} (18... exd4 $11 {remains equal.} 19. Na5 Qc3+ 20. Kf2 Qe3+ 21. Kf1 Be7 22. Qxe6 Qd3+ 23. Kg1 Qe3+ 24. Kf1 Qd3+ 25. Kg1 Qe3+ 26. Kf1) 19. Nd2 $2 {[%emt 0:01:33]} (19. Na5 $16 {keeps the pressure on.}) 19... Qb6 {[%emt 0:02:50]} (19... Qc3 $17 20. O-O Qxd2 21. Qxe6+ Be7 22. Qxe5 Kf7 23. Qxb5 Qg5) 20. Ke2 $11 {[%emt 0:06:21]} Be7 {[%emt 0:00:35]} 21. Nb3 {[%emt 0:01:51]} Rd8 {[%emt 0:03:00]} 22. Rhc1 {[%emt 0:03:00]} Bg5 {[%emt 0:02:52] White must now prevent ...Qe3+.} 23. Rc5 {[%emt 0:02:05]} (23. Nc5 Bxc1 24. Rxc1 Kf7 $17) 23... O-O {[%emt 0:00:36]} (23... Qd6 24. Qc2 $14) 24. Qc2 {[%emt 0:05:55]} Rd6 {[%emt 0:02:34]} 25. Rd1 {[%emt 0:01:04]} Rxd1 {[%emt 0:07:51]} 26. Qxd1 {[%emt 0:00:20]} Rd8 {[%emt 0:01:48] Against Qd7} 27. Qc2 {[%emt 0:00:03]} a6 {[%emt 0:01:00]} (27... Be7 $11) 28. Qc3 {[%emt 0:05:34]} (28. g3 $14) 28... Qd6 {[%emt 0:01:56] ...Qd1+ is the strong threat.} 29. Rc8 {[%emt 0:00:43]} Qd1+ {[%emt 0:00:58]} 30. Kf2 {[%emt 0:00:02]} Rxc8 {[%emt 0:04:40]} 31. Qxc8+ {[%emt 0:00:03][%mdl 4096] Endgame KQB-KQN} Kf7 {[%emt 0:00:32]} 32. Qc3 {[%emt 0:07:04]} Kg6 {[%emt 0:01:46]} 33. g3 {[%emt 0:09:31]} Qh1 {[%emt 0:01:51]} 34. Qxe5 {[%emt 0:00:25]} Qxh2+ {[%emt 0:00:30]} 35. Kf1 {[%emt 0:01:10]} Qh3+ {[%emt 0:00:43]} 36. Kf2 {[%emt 0:00:32]} Bf6 $36 {[%emt 0:00:15][%mdl 2048] Black has some pressure.} 37. Qf4 {[%emt 0:01:23]} (37. Qd6 $1 $11) 37... Qh2+ $19 {[%emt 0:01:44]} 38. Kf1 {[%emt 0:00:25]} Qh1+ $1 {[%emt 0:00:45]} 39. Kf2 {[%emt 0:03:40]} h5 $1 {[%emt 0:03:13]} 40. e5 {[%emt 0:00:00]} Bg5 $1 {[%emt 0:00:00]} 41. Qe4+ {[%emt 0:05:06]} Kh6 {[%emt 0:01:49]} 42. Qa8 $2 {[%emt 0:05:50]} (42. Nc5 $17 Qh2+ 43. Kf1) 42... Qh2+ {[%emt 0:02:14]} 43. Kf1 {[%emt 0:01:46]} Be3 {[%emt 0:02:49][%csl Ge3][%cal Rh2f2]} 44. Ke1 {[%emt 0:01:31]} Qxg3+ {[%emt 0:02:48]} 45. Ke2 {[%emt 0:00:06]} Qxe5 {[%emt 0:00:25]} 46. Kd3 {[%emt 0:04:26]} (46. Qe4 $142 Bf4 47. Qxe5 Bxe5 48. Nc5) 46... Bg5 $2 {[%emt 0:02:24]} (46... h4 $19 47. Qh8+ Kg5) 47. Qh8+ $1 $11 {[%emt 0:00:59]} Kg6 {[%emt 0:00:38]} 48. Qe8+ {[%emt 0:00:14]} Kf6 {[%emt 0:05:13]} ({Reject} 48... Kh6 49. Qh8+ Kg6 50. Qe8+ Kh6 51. Qh8+) 49. Qf8+ $1 {[%emt 0:00:33]} Kg6 {[%emt 0:00:03]} 50. Qe8+ {[%emt 0:00:07]} Kf5 {[%emt 0:09:57]} ({Of course not} 50... Kh6 51. Qh8+ Kg6 52. Qe8+ $15) 51. Nd4+ $2 {[%emt 0:04:57][%mdl 8192]} (51. Qf7+ $1 $11 {and White is okay.} Bf6 52. Qxh5+ g5 53. Nc5) 51... Kf4 $19 {[%emt 0:00:17]} ({Stronger than} 51... Kf6 52. Qf8+ Kg6 53. Qe8+ Kh7 54. Qxh5+ Kg8 55. Qe8+ Kh7 56. Qh5+ Kg8 57. Qe8+ Kh7 58. Qh5+ $11) 52. Ne2+ $2 {[%emt 0:11:13]} (52. Nxe6+ Kg3 53. Qg6 Qd5+ 54. Kc3 Qxf3+ 55. Kc2 Qe2+ 56. Kb3 Qd1+ 57. Kb2 Qc1+ 58. Ka2 Qc4+ 59. Kb2 Qe2+ 60. Kb1 Qd1+ 61. Kb2 Qe2+ 62. Kb1 Qd1+ 63. Kb2) 52... Kxf3 {[%emt 0:00:34]} 53. Qxh5+ {[%emt 0:00:23]} Kf2 {[%emt 0:00:12] ( -> ...Qf5+)} 54. Nc3 {[%emt 0:00:44]} Qe3+ {[%emt 0:01:53]} 55. Kc2 {[%emt 0:00:08] Strongly threatening Nd1+.} Qd2+ {[%emt 0:03:12]} ({Black should try} 55... Kg3 $19 {aiming for ...Bf6.} 56. Qg6 Qe5 57. Qd3+ Kh4 58. Qh7+ Kg4) 56. Kb3 $11 {[%emt 0:00:08]} Qe3 {[%emt 0:05:13][%mdl 8192] [#] Inhibits Ne4+.} (56... Kg2 $11 57. Qg4+ Kh2 58. Qh5+ Kg2 59. Qg4+ Kh2 60. Qh5+ Kg2) 57. Qxg5 $3 $18 {[%emt 0:00:50][%mdl 576] Decoy} Qxg5 {[%emt 0:01:21]} (57... Qd4 58. Qc5) 58. Ne4+ {[%emt 0:00:02]} Ke3 {[%emt 0:00:39]} 59. Nxg5 {[%emt 0:00:02]} e5 {[%emt 0:00:07] [#]} 60. Kc3 $2 {[%emt 0:00:50]} (60. Kc2 $1 $18 g6 61. Kd1) 60... g6 $2 {[%emt 0:00:22][%mdl 8192]} (60... e4 $11) 61. Ne6 {[%emt 0:03:42]} Ke2 62. Ng5 {[%emt 0:01:11] Hoping for Nf7.} Ke3 {[%emt 0:01:45]} 63. Ne6 {[%emt 0:00:45]} Ke2 {[%emt 0:00:08][%mdl 32768] What a fight!  Weighted Error Value: White=0.82/Black=0.34. An unexpected result.} 1/2-1/2

[Event "ESCC-65 2022"]
[Site "Lublin"]
[Date "2022.07.06"]
[Round "2.8"]
[White "Hewson, Brian W R"]
[Black "Neumann, Joachim"]
[Result "1/2-1/2"]
[ECO "E17"]
[WhiteElo "2049"]
[BlackElo "2082"]
[Annotator "TA"]
[PlyCount "47"]
[EventDate "2022.07.05"]
[EventType "swiss"]
[EventCountry "POL"]
[SourceTitle "playchess.com"]
[Source "ChessBase"]
[SourceQuality "1"]
[TimeControl "40/5400+30:1800+30"]

{[%evp 12,47,16,11,25,27,50,28,52,29,22,15,29,30,35,35,27,27,47,19,22,15,18,25,48,38,47,0,0,0,0,0,0,0,0,0,0,0]} 1. d4 {[%emt 0:00:11]} Nf6 {[%emt 0:00:10]} 2. Nf3 {[%emt 0:00:35]} e6 {[%emt 0:00:24]} 3. c4 {[%emt 0:01:07]} b6 {[%emt 0:00:09]} 4. g3 {[%emt 0:00:23]} Bb7 {[%emt 0:00:36]} 5. Bg2 {[%emt 0:00:07]} Be7 {[%emt 0:00:22]} 6. O-O {[%emt 0:00:29]} O-O {[%emt 0:00:06]} 7. b3 {[%emt 0:04:12]} d6 {[%emt 0:03:51] E17: Queen's Indian: 4 g3 Bb7 5 Bg2 Be7.} 8. Bb2 {[%emt 0:00:14]} Qc8 {[%emt 0:02:56]} 9. Nbd2 {[%emt 0:03:25]} Ne4 {[%emt 0:00:59] [#] White has an edge.} 10. e3 $146 {[%emt 0:05:32]} ({Predecessor:} 10. d5 Nxd2 11. Nxd2 c5 12. Bh3 Na6 13. e4 Nc7 14. f4 Re8 15. Qh5 Qd8 16. Qg4 {1-0 (52) Kurajica,B (2531)-Kamberovic,S (2272) Sarajevo 2011}) 10... Nd7 {[%emt 0:05:10]} 11. Rc1 {[%emt 0:06:17]} Bf6 {[%emt 0:19:08]} 12. Qc2 {[%emt 0:01:19]} Nxd2 {[%emt 0:00:12]} 13. Nxd2 {[%emt 0:04:33]} Bxg2 {[%emt 0:00:32]} 14. Kxg2 {[%emt 0:00:06]} e5 {[%emt 0:13:44]} 15. Rcd1 {[%emt 0:08:11]} exd4 {[%emt 0:02:58]} 16. exd4 {[%emt 0:00:53]} (16. Ne4 {is interesting.} dxe3 17. Bxf6 Nxf6 18. Nxf6+ gxf6 19. fxe3 Re8 20. Rxf6 Rxe3 21. Rxf7 Kxf7 22. Qf2+) 16... Qb7+ {[%emt 0:07:52]} 17. f3 {[%emt 0:09:31]} g6 {[%emt 0:06:01] Against Qf5} 18. Rfe1 {[%emt 0:03:20]} Rae8 {[%emt 0:02:34]} 19. Re4 {[%emt 0:12:54]} (19. Ne4 $14 {is more appropriate.}) 19... Bg7 $11 {[%emt 0:02:32] The position is equal.} 20. Rde1 {[%emt 0:00:31]} Nf6 {[%emt 0:02:06]} 21. Rxe8 {[%emt 0:00:41]} Rxe8 {[%emt 0:00:01]} 22. Rxe8+ {[%emt 0:00:39]} Nxe8 {[%emt 0:00:09]} 23. d5 {[%emt 0:00:22]} Bxb2 {[%emt 0:02:44]} 24. Qxb2 {[%emt 0:00:24] Weighted Error Value: White=0.09 (flawless) /Black=0.08 (flawless)} 1/2-1/2

[Event "ESCC-65 2022"]
[Site "Lublin"]
[Date "2022.07.06"]
[Round "2.9"]
[White "Gromowski, Stanislaw"]
[Black "Berkley, Stephen W"]
[Result "0-1"]
[ECO "C02"]
[WhiteElo "1613"]
[BlackElo "1525"]
[Annotator "NA RC COMBH"]
[PlyCount "58"]
[EventDate "2022.07.05"]
[EventType "swiss"]
[EventCountry "POL"]
[SourceTitle "playchess.com"]
[Source "ChessBase"]
[SourceQuality "1"]
[TimeControl "40/5400+30:1800+30"]

1. e4 e6 2. d4 {[%emt 0:01:31]} d5 {[%emt 0:00:52]} 3. e5 {[%emt 0:00:35]} c5 {[%emt 0:00:35]} 4. c3 {[%emt 0:00:27]} Nc6 {[%emt 0:00:28]} 5. Bb5 {[%emt 0:00:26]} Bd7 {[%emt 0:00:14]} 6. Ba4 {[%emt 0:01:49]} cxd4 {[%emt 0:03:30]} 7. cxd4 {[%emt 0:00:17]} Qb6 {[%emt 0:02:16]} 8. Nf3 {[%emt 0:00:32]} Nge7 {[%emt 0:05:39]} 9. O-O {[%emt 0:01:30]} Nf5 {[%emt 0:04:00]} 10. Bxc6 {[%emt 0:01:56]} bxc6 {[%emt 0:02:16]} 11. Nc3 {[%emt 0:03:13]} Be7 {[%emt 0:07:11]} 12. Rb1 {[%emt 0:01:38]} O-O {[%emt 0:08:06]} 13. Ne2 {[%emt 0:10:08]} a5 {[%emt 0:15:57]} 14. Bg5 {[%emt 0:11:02]} Bxg5 {[%emt 0:03:40]} 15. Nxg5 {[%emt 0:00:15]} h6 {[%emt 0:01:21]} 16. Nf3 {[%emt 0:00:21]} c5 {[%emt 0:01:45]} 17. dxc5 {[%emt 0:00:15]} Qxc5 {[%emt 0:00:16]} 18. g4 {[%emt 0:00:29]} Ne7 {[%emt 0:01:17]} 19. Ned4 {[%emt 0:02:06]} Nc6 {[%emt 0:03:15]} 20. Qd2 {[%emt 0:13:22]} Nxd4 {[%emt 0:02:05]} 21. Nxd4 {[%emt 0:00:15]} Qb4 {[%emt 0:02:56]} 22. Qe3 {[%emt 0:01:17]} Rfc8 {[%emt 0:01:38]} 23. a3 {[%emt 0:00:46]} Qb6 {[%emt 0:00:53]} 24. b4 {[%emt 0:02:35]} Rc4 {[%emt 0:00:50]} 25. Rfd1 {[%emt 0:01:00]} axb4 {[%emt 0:00:16]} 26. axb4 {[%emt 0:03:30]} Rxb4 {[%emt 0:00:08]} 27. Rxb4 {[%emt 0:00:16]} Qxb4 {[%emt 0:00:07]} 28. h3 {[%emt 0:00:19]} Ra3 {[%emt 0:01:26]} 29. Rd3 {[%emt 0:00:51]} Qb1+ {[%emt 0:00:16]} 0-1

[Event "ESCC-65 2022"]
[Site "Lublin"]
[Date "2022.07.06"]
[Round "2.10"]
[White "Chubar, Vladimir"]
[Black "Stebbings, Anthony J"]
[Result "0-1"]
[ECO "A46"]
[WhiteElo "1809"]
[BlackElo "2283"]
[Annotator "TA"]
[PlyCount "52"]
[EventDate "2022.07.05"]
[EventType "swiss"]
[EventCountry "POL"]
[SourceTitle "playchess.com"]
[Source "ChessBase"]
[SourceQuality "1"]
[TimeControl "40/5400+30:1800+30"]

{[%evp 9,52,-5,-2,0,0,3,3,1,4,-6,0,-44,-37,-59,-10,-25,-23,-26,-17,-37,-25,-188,-206,-248,-258,-262,-245,-241,-235,-237,-225,-504,-502,-490,-501,-502,-489,-499,-489,-519,-505,-621,-580,-968,-942]} 1. d4 {[%emt 0:00:06]} Nf6 {[%emt 0:00:05]} 2. Nf3 {[%emt 0:00:24]} e6 {[%emt 0:00:08]} 3. Bg5 {[%emt 0:00:34][%cal Bc1g5,Bg5h4,Bh4g3][%mdl 32]} h6 {[%emt 0:00:09]} 4. Bh4 {[%emt 0:01:15]} d6 {[%emt 0:01:21]} 5. Nbd2 {[%emt 0:01:45]} g5 {[%emt 0:00:36]} 6. Bg3 {[%emt 0:00:25] A46: 1 d4 Nf6 2 Nf3 e6: Torre, London and Colle Systems.} Nh5 {[%emt 0:00:18]} 7. e3 {[%emt 0:03:14]} Nd7 {[%emt 0:01:23]} 8. Bd3 {[%emt 0:02:28] The position is equal.} Bg7 {[%emt 0:00:08]} 9. O-O {[%emt 0:03:00]} O-O {[%emt 0:02:23]} 10. Ne1 {[%emt 0:04:24]} Nxg3 {[%emt 0:00:45]} 11. fxg3 {[%emt 0:01:41] [#]} Qe7 $146 {[%emt 0:03:13]} (11... d5 $15) ({Predecessor:} 11... f5 12. c3 d5 13. g4 fxg4 14. Qxg4 Nf6 15. Qe2 e5 16. dxe5 Ng4 17. Nef3 Qe7 {1-0 (48) Dzagnidze,N (2321)-Paehtz,E (2383) Athens 2001}) 12. g4 {[%emt 0:02:56]} c5 {[%emt 0:01:58][%cal Bc7c5,Bc5d4][%mdl 32]} 13. c3 {[%emt 0:02:01]} b6 {[%emt 0:00:37]} 14. Qf3 {[%emt 0:02:53]} d5 {[%emt 0:01:34]} 15. e4 $2 {[%emt 0:03:21] This move loses the game for White.} (15. Qe2 $11 {and White stays safe.}) 15... cxd4 $19 {[%emt 0:10:43]} 16. exd5 {[%emt 0:00:49]} Ne5 {[%emt 0:00:40]} ({Avoid the trap} 16... dxc3 $2 17. dxe6 cxd2 18. Qxa8 Qxe6 19. Bf5 dxe1=Q 20. Raxe1 Qxa2 21. Kh1) 17. Qe4 {[%emt 0:02:23][%csl Gd3][%cal Re4h7] [#]} Nxd3 {[%emt 0:03:17]} 18. Nxd3 {[%emt 0:01:34]} dxc3 {[%emt 0:00:32]} 19. bxc3 {[%emt 0:06:51]} Bb7 {[%emt 0:05:05]} 20. c4 {[%emt 0:02:25]} (20. d6 Qxd6 21. Qxb7 Qxd3 22. Nf3) 20... Bxa1 {[%emt 0:00:10] Black is clearly winning.} 21. Rxa1 {[%emt 0:00:51]} Qf6 {[%emt 0:01:52]} 22. Rf1 {[%emt 0:06:25]} exd5 {[%emt 0:02:36]} 23. cxd5 {[%emt 0:02:27]} Qd6 {[%emt 0:03:53]} 24. Rf5 {[%emt 0:01:19]} Rad8 {[%emt 0:01:10][%cal Rb7d5]} 25. Qd4 {[%emt 0:03:38] [#] Strongly threatening Ne4.} Bxd5 {[%emt 0:02:05]} 26. Rf6 {[%emt 0:09:38]} Be6 {[%emt 0:00:33] Weighted Error Value: White=0.72/Black=0.04 (flawless)} 0-1